bitfinex/quotes_BTCUSD_20260126
["timestamp","ask_amount","ask_price","bid_price","bid_amount"]
[1769407814136,0.62630185,87850.0,87834.0,0.91799193]
[1769407814343,0.62630185,87848.0,87830.0,0.06335315]
[1769407814541,0.62630185,87848.0,87829.0,0.02277152]
[1769407814542,0.71709307,87848.0,87829.0,0.02277152]
[1769407814952,0.09079122,87847.0,87828.0,0.98106555]
[1769407815451,0.09079122,87847.0,87828.0,1.07755929]
[1769407815998,0.09079122,87847.0,87830.0,0.50927281]
[1769407816380,0.09079122,87847.0,87830.0,0.5092016]
[1769407816579,0.09079122,87847.0,87830.0,1.52368727]
[1769407817182,0.09079122,87847.0,87831.0,0.97061735]
[1769407817387,0.0842082,87859.0,87833.0,0.88604557]
[1769407817622,0.0842082,87857.0,87835.0,0.88604557]
[1769407817823,0.0842082,87855.0,87836.0,0.08457178]
[1769407818148,0.71051005,87854.0,87836.0,0.08457178]
[1769407818756,0.50927281,87860.0,87837.0,0.00053507]
[1769407818994,0.17496,87855.0,87843.0,0.88604557]
[1769407819543,0.62254376,87860.0,87843.0,0.88604557]
[1769407819733,0.0842082,87859.0,87843.0,0.88604557]
[1769407819933,0.70678954,87859.0,87843.0,0.88604557]
[1769407820142,0.01138148,87862.0,87842.0,0.08457178]
[1769407820143,0.0842082,87858.0,87842.0,0.08457178]
[1769407820502,0.62258134,87857.0,87837.0,0.97061735]
[1769407820659,0.70678954,87856.0,87837.0,0.97061735]
[1769407823212,0.70778954,87856.0,87837.0,0.97061735]
[1769407824044,0.001,87856.0,87839.0,0.08457178]
[1769407824259,0.001,87856.0,87842.0,0.97061735]
[1769407824455,0.001,87856.0,87842.0,0.08457178]
[1769407825046,0.001,87856.0,87843.0,0.00059108]
[1769407825665,0.62358134,87856.0,87843.0,0.00059108]
[1769407825997,0.62258134,87856.0,87843.0,0.00172964]
[1769407826437,0.62358134,87856.0,87843.0,0.00172964]
[1769407827061,0.62258134,87856.0,87843.0,0.00172964]
[1769407827272,0.001,87856.0,87843.0,0.00172964]
[1769407827469,0.001,87856.0,87843.0,0.97234699]
[1769407827706,0.001,87856.0,87843.0,0.97061735]
[1769407827866,1.13185415,87860.0,87844.0,0.00172962]
[1769407828302,0.50927281,87860.0,87844.0,0.00172962]
[1769407828607,0.70678954,87859.0,87844.0,0.00172962]
[1769407829226,0.001,87856.0,87844.0,0.00172962]
[1769407829592,0.70678954,87859.0,87844.0,0.00172962]
[1769407829971,0.70778954,87859.0,87844.0,0.00172962]
[1769407830394,0.70678954,87859.0,87844.0,0.00172962]
[1769407830796,0.70778954,87859.0,87843.0,0.08457178]
[1769407831193,0.63496321,87859.0,87837.0,0.88604557]
[1769407831440,0.62258134,87857.0,87838.0,0.08457178]
[1769407833104,0.62258134,87857.0,87839.0,0.00059091]
[1769407833309,0.62358134,87857.0,87839.0,0.08516269]
[1769407833875,0.62258134,87857.0,87839.0,0.08516269]
[1769407834136,0.62258134,87857.0,87839.0,0.08509494]
[1769407835019,0.62258134,87857.0,87840.0,0.8939385]
[1769407835321,0.62358134,87857.0,87841.0,0.07082106]
[1769407835692,0.62358134,87857.0,87841.0,0.07202724]
[1769407835891,0.62258134,87857.0,87841.0,0.07202724]
[1769407836155,0.62358134,87857.0,87841.0,0.07202724]
[1769407836807,0.62258134,87857.0,87841.0,0.07202724]
[1769407837014,0.62358134,87857.0,87841.0,0.07036552]
[1769407837495,0.6921301,87857.0,87841.0,0.07036552]
[1769407838076,0.62358134,87857.0,87830.0,0.50965652]
[1769407838276,0.06854876,87854.0,87833.0,0.8939385]
[1769407838428,0.6911301,87854.0,87834.0,0.07036552]
[1769407838591,0.6911301,87854.0,87834.0,0.96430402]
[1769407839645,0.62258134,87854.0,87834.0,0.96430402]
[1769407839866,0.06854876,87853.0,87834.0,0.96430402]
[1769407840115,0.12546236,87853.0,87828.0,0.06307362]
[1769407840274,0.17496,87864.0,87827.0,0.00044671]
[1769407840275,0.50965652,87840.0,87827.0,0.00044671]
[1769407840552,0.51386614,87843.0,87827.0,0.00044671]
[1769407841252,0.44531738,87837.0,87827.0,0.00044671]
[1769407841456,0.51386614,87837.0,87827.0,0.00044671]
[1769407841816,0.34505207,87837.0,87827.0,0.00044671]
[1769407843296,0.06794537,87836.0,87827.0,0.00044671]
[1769407848359,0.06794537,87836.0,87827.0,0.00053171]
[1769407850286,0.27819145,87837.0,87827.0,0.00053171]
[1769407850909,0.06854876,87841.0,87827.0,0.89447021]
[1769407851089,0.06854876,87846.0,87828.0,0.00053516]
[1769407851324,0.34674021,87846.0,87828.0,0.00062016]
[1769407851501,0.34674021,87846.0,87828.0,0.01314464]
[1769407851909,0.06854876,87846.0,87830.0,0.50965652]
[1769407852256,0.06854876,87846.0,87831.0,0.90699784]
[1769407852458,0.06954876,87846.0,87831.0,0.8939385]
[1769407853215,0.06954876,87846.0,87831.0,0.8940235]
[1769407853621,0.06854876,87846.0,87831.0,0.8940235]
[1769407854048,0.001,87846.0,87838.0,0.07036552]
[1769407854231,0.001,87846.0,87840.0,0.07036552]
[1769407854416,0.01148257,87859.0,87840.0,0.96430402]
[1769407854614,0.12511145,87858.0,87840.0,0.96430402]
[1769407854844,0.001,87846.0,87840.0,0.96430402]
[1769407855261,0.35812234,87857.0,87840.0,0.96430402]
[1769407855419,0.34674021,87857.0,87840.0,0.96430402]
[1769407856882,0.0001007,87859.0,87842.0,0.8939385]
[1769407857123,0.0001007,87859.0,87845.0,0.07036552]
[1769407857328,0.001,87857.0,87848.0,0.8939385]
[1769407857501,0.001,87857.0,87848.0,0.96430402]
[1769407857732,0.0001007,87859.0,87848.0,0.96430402]
[1769407857932,0.0001007,87859.0,87849.0,0.8939385]
[1769407858114,0.0011007,87859.0,87850.0,0.07036552]
[1769407858512,0.0011007,87859.0,87851.0,0.8939385]
[1769407858726,0.0011007,87859.0,87853.0,0.07036552]
[1769407859098,0.0001007,87859.0,87853.0,0.07036552]
[1769407859307,0.0001007,87859.0,87857.0,0.07036552]
[1769407859510,0.0001007,87859.0,87858.0,0.8939385]
[1769407859692,0.0001007,87859.0,87841.0,0.07036552]
[1769407859898,0.57839098,87870.0,87843.0,0.07036552]
[1769407860189,0.28967171,87869.0,87848.0,0.8939385]
[1769407860415,0.28967171,87869.0,87840.0,0.50965652]
[1769407860416,0.0113807,87868.0,87849.0,0.07036552]
[1769407860568,0.001,87857.0,87850.0,0.07036552]
[1769407860893,0.35868739,87869.0,87850.0,0.07036552]
[1769407861676,0.34730682,87869.0,87850.0,0.07036552]
[1769407862040,0.34830682,87869.0,87850.0,0.07028413]
[1769407863070,0.34830682,87869.0,87850.0,0.96422263]
[1769407863270,0.34830682,87869.0,87851.0,0.0577158]
[1769407863670,0.34830682,87869.0,87851.0,0.98428801]
[1769407864189,0.34730682,87869.0,87852.0,0.0577158]
[1769407865156,0.34830682,87869.0,87852.0,0.0577158]
[1769407865712,0.08139625,87869.0,87852.0,0.0577158]
[1769407865914,0.28967223,87865.0,87852.0,0.0577158]
[1769407866094,0.01138122,87864.0,87852.0,0.0577158]
[1769407866295,0.50965652,87862.0,87837.0,0.0577158]
[1769407866626,0.27829114,87858.0,87838.0,1.01213016]
[1769407866800,0.27829114,87858.0,87839.0,0.0577158]
[1769407867164,0.27829114,87858.0,87841.0,0.0577158]
[1769407867367,0.33551818,87858.0,87842.0,0.92657221]
[1769407869155,0.33551818,87858.0,87842.0,0.92641556]
[1769407869361,0.33551818,87858.0,87843.0,0.01862128]
[1769407869957,0.05822704,87858.0,87843.0,0.94519349]
[1769407870383,0.05722704,87858.0,87843.0,0.94519349]
[1769407870807,0.05822704,87858.0,87843.0,0.94519349]
[1769407871168,0.05722704,87858.0,87843.0,0.94519349]
[1769407871468,0.05722704,87858.0,87844.0,0.02784215]
[1769407871664,0.05822704,87858.0,87844.0,0.02784215]
[1769407872661,0.05722704,87858.0,87844.0,0.02784215]
[1769407872859,0.33567327,87858.0,87841.0,0.0577158]
[1769407873060,0.33667327,87858.0,87841.0,0.0577158]
[1769407873676,0.05722704,87857.0,87839.0,0.92657221]
[1769407874027,0.05722704,87856.0,87839.0,0.92657221]
[1769407874234,0.05722704,87854.0,87837.0,0.06372509]
[1769407874391,0.50965652,87850.0,87833.0,0.92657221]
[1769407874599,0.05722704,87846.0,87824.0,0.92657221]
[1769407874805,0.05722704,87844.0,87825.0,0.02185605]
[1769407875099,0.05722704,87844.0,87824.0,0.92657221]
[1769407875297,0.05722704,87843.0,87824.0,0.92657221]
[1769407875707,0.05722704,87843.0,87827.0,0.06296175]
[1769407875877,0.13877115,87844.0,87827.0,0.06296175]
[1769407876085,0.13877115,87844.0,87828.0,0.0577158]
[1769407877158,0.13977115,87844.0,87828.0,0.0577158]
[1769407877561,0.13877115,87844.0,87828.0,0.0577158]
[1769407877906,0.13977115,87844.0,87828.0,0.0577158]
[1769407878828,0.50965652,87841.0,87827.0,0.0004]
[1769407879043,0.1401679,87840.0,87827.0,0.0004]
[1769407879930,0.1401679,87838.0,87827.0,0.0004]
[1769407880087,0.1401679,87838.0,87831.0,0.00023241]
[1769407881190,0.1401679,87838.0,87831.0,0.00123241]
[1769407881951,0.50965652,87841.0,87831.0,0.00123241]
[1769407881952,0.05260428,87837.0,87831.0,0.00123241]
[1769407882129,0.05260428,87835.0,87831.0,0.00123241]
[1769407882331,0.1401679,87834.0,87831.0,0.00023241]
[1769407883178,0.5622608,87841.0,87831.0,0.00023241]
[1769407883379,0.001,87835.0,87831.0,0.00023241]
[1769407883739,0.1401679,87848.0,87831.0,0.00023241]
[1769407884251,0.1401679,87847.0,87831.0,0.00123241]
[1769407884659,0.15155132,87847.0,87831.0,0.00123241]
[1769407884841,0.15155145,87846.0,87831.0,0.00123241]
[1769407885045,0.1401679,87846.0,87831.0,0.00123241]
[1769407885243,0.05260428,87846.0,87831.0,0.00123241]
[1769407885480,0.05260428,87846.0,87831.0,0.00023241]
[1769407885881,0.19277218,87846.0,87831.0,0.00023241]
[1769407886465,0.19377218,87846.0,87831.0,0.00023241]
[1769407887154,0.19377218,87846.0,87828.0,0.96926283]
[1769407887365,0.19277218,87846.0,87828.0,0.96926283]
[1769407889012,0.19377218,87846.0,87828.0,0.96926283]
[1769407889238,0.19377218,87846.0,87829.0,0.05223933]
[1769407889439,0.19277218,87846.0,87829.0,0.05223933]
[1769407889825,0.19377218,87846.0,87829.0,0.05223933]
[1769407890273,0.19277218,87846.0,87829.0,0.05223933]
[1769407890683,0.19377218,87846.0,87829.0,0.05223933]
[1769407891104,0.19377218,87846.0,87830.0,0.50965652]
[1769407891105,0.001,87846.0,87830.0,0.50965652]
[1769407891310,0.001,87846.0,87834.0,0.05223933]
[1769407891518,0.001,87846.0,87837.0,0.91702836]
[1769407891723,0.001,87846.0,87838.0,0.05208268]
[1769407892145,0.1401679,87859.0,87838.0,0.05208268]
[1769407892366,0.001,87846.0,87838.0,0.05208268]
[1769407892574,0.001,87846.0,87831.0,0.0115712]
[1769407892777,0.14063485,87859.0,87842.0,0.05524912]
[1769407892986,0.00046695,87859.0,87844.0,0.91702836]
[1769407893197,0.00046695,87859.0,87847.0,0.05524912]
[1769407893400,0.00046695,87859.0,87849.0,0.97787163]
[1769407893611,0.00046695,87859.0,87850.0,0.05634905]
[1769407894024,0.47330347,87870.0,87850.0,0.05634905]
[1769407894275,0.00156664,87869.0,87850.0,0.05634905]
[1769407894483,0.00011685,87870.0,87854.0,0.05634905]
[1769407894692,0.00011685,87870.0,87855.0,0.05634905]
[1769407895334,0.00156664,87868.0,87844.0,0.05634905]
[1769407895541,0.001,87859.0,87844.0,0.05634905]
[1769407895748,0.001,87859.0,87847.0,0.97787163]
[1769407895891,0.00156664,87866.0,87844.0,0.0002904]
[1769407895892,0.00156664,87866.0,87848.0,0.05634905]
[1769407896102,0.00156664,87866.0,87850.0,0.05634905]
[1769407896843,0.00156664,87866.0,87850.0,0.05643555]
[1769407897146,0.00256664,87866.0,87850.0,0.05643555]
[1769407898256,0.0139476,87866.0,87850.0,0.05643555]
[1769407898391,0.00256664,87866.0,87850.0,0.05643555]
[1769407898593,0.0129476,87866.0,87850.0,0.05643555]
[1769407898896,0.0139476,87866.0,87850.0,0.05643555]
[1769407899322,0.00256664,87866.0,87850.0,0.97795813]
[1769407899524,0.001,87866.0,87852.0,0.05634905]
[1769407899728,0.001,87866.0,87852.0,0.05643555]
[1769407900202,0.001,87866.0,87853.0,0.97787163]
[1769407900405,0.50973428,87870.0,87854.0,0.05634905]
[1769407900589,0.001,87866.0,87854.0,0.05634905]
[1769407900818,0.001,87866.0,87854.0,0.05643555]
[1769407901512,0.01138109,87865.0,87854.0,0.05638468]
[1769407901773,0.01138135,87863.0,87854.0,0.05638468]
[1769407901979,0.01138122,87864.0,87854.0,0.05638468]
[1769407902213,0.01138148,87862.0,87854.0,0.05638468]
[1769407902415,0.01138161,87861.0,87848.0,0.97787163]
[1769407903381,0.01294734,87868.0,87848.0,0.97787163]
[1769407903543,0.01138135,87863.0,87848.0,0.97787163]
[1769407904592,0.05415399,87862.0,87846.0,0.0002039]
[1769407904795,0.00156664,87861.0,87846.0,0.0002039]
[1769407905075,0.05572063,87861.0,87846.0,0.0002039]
[1769407905697,0.05415399,87861.0,87846.0,0.97807553]
[1769407906205,0.001,87862.0,87848.0,0.05634905]
[1769407906412,0.001,87862.0,87851.0,0.97787163]
[1769407906607,0.01138083,87867.0,87851.0,1.03422068]
[1769407907032,0.001,87861.0,87851.0,1.03422068]
[1769407908284,0.01138083,87867.0,87851.0,1.03422068]
[1769407908648,0.01238083,87867.0,87851.0,1.03422068]
[1769407908858,0.01138096,87866.0,87851.0,1.03422068]
[1769407909071,0.01138109,87865.0,87851.0,1.03422068]
[1769407909524,0.01238083,87867.0,87851.0,1.03422068]
[1769407909928,0.06553456,87869.0,87851.0,1.03422068]
[1769407910286,0.001,87865.0,87851.0,1.03422068]
[1769407910692,0.001,87865.0,87853.0,0.97787163]
[1769407910876,0.001,87865.0,87853.0,1.03422068]
[1769407912091,0.05982304,87869.0,87853.0,1.03422068]
[1769407912437,0.001,87867.0,87853.0,1.03422068]
[1769407912643,0.001,87867.0,87854.0,0.97787163]
[1769407913040,0.05982304,87869.0,87854.0,0.97787163]
[1769407913246,0.0113807,87868.0,87854.0,0.97787163]
[1769407913650,0.05982304,87869.0,87854.0,0.97787163]
[1769407914224,0.001,87867.0,87854.0,0.97787163]
[1769407915235,0.05690604,87865.0,87846.0,0.0002039]
[1769407915424,0.01138122,87864.0,87848.0,1.03422068]
[1769407915627,0.01138109,87865.0,87848.0,1.03422068]
[1769407916027,0.01138122,87864.0,87848.0,1.03422068]
[1769407916392,0.01138083,87867.0,87848.0,1.03422068]
[1769407916618,0.01138096,87866.0,87848.0,1.03422068]
[1769407916865,0.01138109,87865.0,87848.0,1.03422068]
[1769407917483,0.01138122,87864.0,87848.0,1.03422068]
[1769407918094,0.01138109,87865.0,87848.0,1.03422068]
[1769407919331,0.01238109,87865.0,87848.0,1.03422068]
[1769407920165,0.001,87865.0,87848.0,1.03422068]
[1769407920361,0.05415399,87867.0,87850.0,0.97787163]
[1769407920539,0.05415399,87867.0,87851.0,0.99601975]
[1769407920760,0.05415399,87867.0,87851.0,0.97787163]
[1769407921277,0.05415399,87867.0,87851.0,1.03422068]
[1769407921699,0.05415399,87867.0,87846.0,0.0002039]
[1769407921700,0.00011685,87870.0,87852.0,0.05634905]
[1769407921894,0.00011685,87870.0,87856.0,0.05634905]
[1769407922115,0.00011685,87870.0,87861.0,0.97787163]
[1769407922708,0.05689452,87882.0,87849.0,0.18630316]
[1769407922709,0.0113785,87885.0,87862.0,0.97787163]
[1769407922923,0.05415399,87886.0,87865.0,0.05634905]
[1769407923248,0.01137902,87881.0,87868.0,0.97771162]
[1769407923441,0.01137915,87880.0,87868.0,0.97771162]
[1769407923659,0.01137928,87879.0,87865.0,0.00011685]
[1769407923989,0.01137941,87878.0,87865.0,0.00011685]
[1769407924317,0.0113798,87875.0,87865.0,0.00011685]
[1769407924543,0.08244357,87877.0,87865.0,0.00011685]
[1769407924746,0.07106403,87877.0,87865.0,0.00011685]
[1769407928314,0.01137928,87879.0,87865.0,0.00011685]
[1769407928911,0.0113798,87875.0,87865.0,0.00011685]
[1769407929134,0.44895277,87857.0,87841.0,0.07000824]
[1769407929288,0.4489529,87856.0,87841.0,0.07000824]
[1769407929499,0.01138239,87855.0,87841.0,0.07000824]
[1769407929720,0.4489529,87856.0,87841.0,0.07000824]
[1769407930705,0.43757064,87856.0,87841.0,0.07000824]
[1769407930862,0.01138239,87855.0,87841.0,0.07000824]
[1769407931435,0.4489529,87856.0,87841.0,0.07000824]
[1769407932086,0.43757064,87856.0,87846.0,4.723e-05]
[1769407932317,0.001,87856.0,87846.0,4.723e-05]
[1769407932724,0.011499,87857.0,87846.0,4.723e-05]
[1769407933129,0.00011687,87857.0,87846.0,4.723e-05]
[1769407933368,0.001,87856.0,87846.0,4.723e-05]
[1769407933992,0.00011687,87857.0,87846.0,4.723e-05]
[1769407935181,0.00111687,87857.0,87846.0,4.723e-05]
[1769407935792,0.00011687,87857.0,87846.0,4.723e-05]
[1769407936232,0.00111687,87857.0,87846.0,4.723e-05]
[1769407938193,0.00011687,87857.0,87846.0,4.723e-05]
[1769407940928,0.00011687,87857.0,87847.0,1.02054961]
[1769407941130,0.00011687,87857.0,87849.0,1.02054961]
[1769407941325,0.00011687,87857.0,87850.0,1.12343882]
[1769407941530,0.00011687,87857.0,87850.0,1.10067275]
[1769407941736,0.00011687,87857.0,87851.0,1.12343856]
[1769407941941,0.00011687,87857.0,87851.0,1.10067275]
[1769407942145,0.00011687,87857.0,87848.0,0.08012314]
[1769407942344,0.00011687,87857.0,87850.0,0.08012314]
[1769407943048,0.00011687,87857.0,87850.0,0.07996647]
[1769407943855,0.00011687,87857.0,87852.0,0.08012314]
[1769407944083,0.00011687,87857.0,87846.0,4.723e-05]
[1769407944084,0.00011687,87857.0,87853.0,1.10067275]
[1769407944286,0.00011687,87857.0,87853.0,0.08012314]
[1769407945155,0.00011687,87857.0,87853.0,1.10067275]
[1769407946223,0.00011687,87857.0,87854.0,0.08012314]
[1769407946695,0.00011687,87857.0,87853.0,0.001]
[1769407947716,0.99227801,87857.0,87846.0,4.723e-05]
[1769407948934,0.99227801,87857.0,87854.0,0.001]
[1769407949121,0.99227801,87857.0,87846.0,4.723e-05]
[1769407949122,1.00255353,87855.0,87846.0,4.723e-05]
[1769407949326,1.07656038,87855.0,87846.0,4.723e-05]
[1769407949567,1.06517799,87855.0,87846.0,4.723e-05]
[1769407949875,1.07656038,87855.0,87846.0,4.723e-05]
[1769407950221,1.06517799,87855.0,87846.0,4.723e-05]
[1769407950427,0.99112438,87851.0,87835.0,0.08012314]
[1769407950654,0.01138329,87848.0,87834.0,0.0002039]
[1769407950853,0.01138265,87853.0,87821.0,0.0002039]
[1769407950854,0.99092252,87837.0,87821.0,0.0002039]
[1769407951253,0.99092252,87835.0,87821.0,0.0002039]
[1769407952062,0.07400685,87839.0,87821.0,0.0002039]
[1769407952264,0.07400685,87839.0,87822.0,0.08012314]
[1769407952463,0.07400685,87839.0,87823.0,0.01083614]
[1769407952669,0.001,87835.0,87825.0,1.02054961]
[1769407952896,0.001,87835.0,87826.0,0.01083577]
[1769407953072,0.17492,87843.0,87827.0,1.02094961]
[1769407953531,0.001,87839.0,87827.0,1.02094961]
[1769407954161,0.001,87839.0,87832.0,1.02472393]
[1769407954373,0.001,87839.0,87833.0,0.08138109]
[1769407954850,0.18630342,87847.0,87833.0,0.08138109]
[1769407955057,0.93503195,87846.0,87827.0,0.08178109]
[1769407955230,0.93503195,87846.0,87828.0,0.09221662]
[1769407955468,0.03702372,87845.0,87828.0,0.09221662]
[1769407955671,0.03702372,87845.0,87829.0,0.08138109]
[1769407955875,0.001,87839.0,87830.0,0.02277126]
[1769407956514,0.03702372,87845.0,87830.0,0.10415235]
[1769407956644,0.03802372,87845.0,87830.0,0.10415235]
[1769407957247,0.02340008,87844.0,87830.0,0.10415235]
[1769407957870,0.02340008,87844.0,87830.0,0.02277126]
[1769407958070,0.02340008,87844.0,87831.0,0.10415209]
[1769407959726,0.02440008,87844.0,87831.0,0.10415209]
[1769407960341,0.02440008,87844.0,87831.0,0.08138109]
[1769407961948,0.11160278,87843.0,87831.0,0.08138109]
[1769407964270,0.11260278,87843.0,87831.0,0.08138109]
[1769407965215,0.01138433,87840.0,87827.0,0.0004]
[1769407965415,0.93503195,87839.0,87827.0,0.0004]
[1769407968285,0.08206359,87841.0,87827.0,0.0004]
[1769407968495,0.08740256,87840.0,87827.0,0.0004]
[1769407969668,0.01138446,87839.0,87827.0,0.0004]
[1769407969979,0.93503195,87834.0,87827.0,0.0004]
[1769407970785,0.01138524,87833.0,87827.0,0.0004]
[1769407970986,0.94641693,87835.0,87827.0,0.0004]
[1769407971186,0.11160278,87834.0,87827.0,0.0004]
[1769407971400,0.12298789,87834.0,87827.0,0.0004]
[1769407971609,0.01138537,87832.0,87827.0,0.0004]
[1769407972192,0.01238524,87833.0,87827.0,0.0004]
[1769407972395,0.11160278,87834.0,87827.0,0.0004]
[1769407972622,0.08933959,87833.0,87827.0,0.0004]
[1769407972786,0.001,87832.0,87827.0,0.0004]
[1769407973668,0.01238537,87832.0,87827.0,0.0004]
[1769407973817,0.001,87832.0,87827.0,0.0004]
[1769407974017,0.01238537,87832.0,87827.0,0.0004]
[1769407974272,0.05903244,87832.0,87827.0,0.0004]
[1769407974644,0.93503195,87831.0,87827.0,0.0004]
[1769407975060,0.05803244,87832.0,87827.0,0.0004]
[1769407975316,0.05803244,87832.0,87816.0,0.08138109]
[1769407975317,0.05695194,87794.0,87791.0,1e-08]
[1769407975527,0.5098032,87801.0,87794.0,0.0021131]
[1769407975724,0.5098032,87801.0,87763.0,0.0004]
[1769407975725,0.17496,87800.0,87782.0,1.10610502]
[1769407975930,0.17496,87800.0,87783.0,1.03601702]
[1769407976335,0.17496,87799.0,87783.0,1.02472393]
[1769407976537,0.17496,87799.0,87786.0,0.08138109]
[1769407976664,0.17496,87799.0,87787.0,1.02472393]
[1769407977803,0.08206359,87798.0,87783.0,0.00046695]
[1769407978004,0.11160278,87797.0,87783.0,0.00046695]
[1769407978407,0.08206359,87798.0,87783.0,0.00046695]
[1769407978774,1.01709554,87797.0,87783.0,0.00046695]
[1769407979192,0.08206359,87797.0,87783.0,1.02519088]
[1769407980265,0.08206359,87797.0,87783.0,0.00046695]
[1769407980486,0.11160278,87796.0,87783.0,0.00046695]
[1769407980827,0.5098032,87793.0,87783.0,0.00046695]
[1769407981024,0.18639017,87795.0,87783.0,0.00046695]
[1769407981231,0.175,87795.0,87783.0,0.00046695]
[1769407981842,0.175,87795.0,87779.0,0.08071381]
[1769407982034,0.175,87795.0,87779.0,0.08076169]
[1769407982259,0.18639017,87795.0,87779.0,0.08076169]
[1769407982462,0.175,87795.0,87779.0,0.08076169]
[1769407982780,0.01139055,87792.0,87779.0,0.08076169]
[1769407982985,0.94642315,87787.0,87779.0,4.788e-05]
[1769407983191,0.08206359,87786.0,87779.0,4.788e-05]
[1769407983814,0.175,87785.0,87779.0,4.788e-05]
[1769407985406,0.175,87784.0,87772.0,0.95042445]
[1769407985635,0.175,87784.0,87772.0,0.95047113]
[1769407988291,0.17504,87788.0,87772.0,4.668e-05]
[1769407988514,0.9500774,87791.0,87774.0,0.09030904]
[1769407988718,0.08913098,87792.0,87777.0,0.95042445]
[1769407988719,0.17504,87788.0,87777.0,0.95042445]
[1769407989535,0.17604,87788.0,87777.0,0.95042445]
[1769407990054,0.02295433,87787.0,87776.0,0.09030904]
[1769407990718,0.02295433,87787.0,87772.0,4.668e-05]
[1769407990918,0.02295433,87787.0,87772.0,0.95047113]
[1769407991144,0.001,87788.0,87772.0,0.95047113]
[1769407991351,0.02395433,87788.0,87772.0,0.95047113]
[1769407991552,0.02295433,87788.0,87772.0,0.95047113]
[1769407991752,0.02295433,87789.0,87774.0,0.95042445]
[1769407991912,0.001,87787.0,87774.0,0.95042445]
[1769407992296,0.02295433,87789.0,87774.0,0.95042445]
[1769407994406,0.02295433,87789.0,87772.0,4.668e-05]
[1769407994407,0.02295433,87789.0,87776.0,0.95042445]
[1769407995478,0.02395433,87789.0,87777.0,0.0108049]
[1769407995685,0.001,87789.0,87777.0,0.0108049]
[1769407995897,0.001,87789.0,87776.0,0.96122935]
[1769407996102,0.26417098,87792.0,87776.0,0.95042445]
[1769407996343,0.001,87789.0,87777.0,0.01080732]
[1769407997826,0.26417098,87792.0,87777.0,0.01080732]
[1769407998026,0.5098032,87790.0,87777.0,0.01080732]
[1769407998233,0.001,87789.0,87777.0,0.01080732]
[1769407998638,0.5098032,87790.0,87777.0,0.01080732]
[1769407998851,0.26417098,87792.0,87777.0,0.01080732]
[1769407999063,0.26517098,87792.0,87777.0,0.01080732]
[1769407999267,0.26517098,87792.0,87778.0,1.01442208]
[1769407999480,0.26417098,87792.0,87779.0,0.01080708]
[1769407999685,0.9500774,87797.0,87779.0,0.01080708]
[1769407999686,0.9500774,87797.0,87780.0,1.52422528]
[1769407999864,0.001,87790.0,87781.0,1.10595495]
[1769408000673,0.17504,87798.0,87782.0,0.09153287]
[1769408000886,0.17504,87801.0,87785.0,1.10595495]
[1769408001289,0.001,87792.0,87785.0,1.10595495]
[1769408001729,0.94892644,87802.0,87785.0,1.10595495]
[1769408002141,0.5098032,87800.0,87785.0,1.10595495]
[1769408002983,0.02295433,87799.0,87785.0,1.10595495]
[1769408003188,0.02295433,87801.0,87785.0,1.10595495]
[1769408004187,0.62338896,87800.0,87780.0,1.01442208]
[1769408004374,0.96031635,87797.0,87777.0,0.09153287]
[1769408004734,0.02295433,87799.0,87772.0,4.668e-05]
[1769408004735,0.94892644,87789.0,87772.0,4.668e-05]
[1769408004944,0.02295433,87788.0,87772.0,4.668e-05]
[1769408005610,0.02295433,87788.0,87773.0,1.01442208]
[1769408005986,0.02295433,87788.0,87773.0,1.10595495]
[1769408007771,0.08988755,87786.0,87772.0,4.668e-05]
[1769408007981,0.02295433,87785.0,87772.0,4.668e-05]
[1769408010153,0.02295433,87785.0,87773.0,1.01442208]
[1769408010371,0.02295433,87789.0,87773.0,1.01442208]
[1769408010551,1.03881399,87787.0,87772.0,4.668e-05]
[1769408010753,0.02295433,87786.0,87772.0,4.668e-05]
[1769408011715,0.02295433,87786.0,87773.0,1.01442208]
[1769408012059,0.5098032,87790.0,87773.0,1.01442208]
[1769408012060,0.02295433,87789.0,87773.0,1.01442208]
[1769408012243,0.11383013,87788.0,87773.0,1.01442208]
[1769408012440,0.13678446,87787.0,87773.0,1.01442208]
[1769408012641,0.02295433,87787.0,87773.0,1.01442208]
[1769408012885,0.02295433,87789.0,87773.0,1.01442208]
[1769408013041,0.11383328,87788.0,87773.0,1.01442208]
[1769408013240,0.13678761,87787.0,87773.0,1.01442208]
[1769408013425,0.02295433,87787.0,87773.0,1.01442208]
[1769408013630,0.02295433,87789.0,87773.0,1.01442208]
[1769408013895,0.11383453,87788.0,87773.0,1.01442208]
[1769408014053,0.13678886,87787.0,87773.0,1.01442208]
[1769408014249,0.02295433,87787.0,87773.0,1.01442208]
[1769408014462,0.02295433,87789.0,87773.0,1.01442208]
[1769408014663,0.11383378,87788.0,87773.0,1.01442208]
[1769408015031,0.02295433,87787.0,87773.0,1.01442208]
[1769408015357,0.17508,87796.0,87780.0,1.02683123]
[1769408015529,0.11383569,87795.0,87781.0,1.13281871]
[1769408015746,0.11383569,87794.0,87781.0,1.12172083]
[1769408016010,0.11383569,87793.0,87781.0,1.12172083]
[1769408016163,0.17508,87796.0,87781.0,1.12172083]
[1769408016348,0.1138372,87795.0,87781.0,1.12172083]
[1769408016549,0.1138372,87794.0,87781.0,1.12172083]
[1769408016772,0.1138372,87793.0,87782.0,0.00980582]
[1769408016993,0.17508,87796.0,87782.0,0.00980582]
[1769408017199,0.11383735,87795.0,87782.0,0.02278371]
[1769408017392,0.11383735,87794.0,87782.0,0.02278371]
[1769408017597,0.17508,87796.0,87782.0,0.02278371]
[1769408017853,0.11383617,87795.0,87782.0,0.02278371]
[1769408018152,0.11383617,87794.0,87782.0,0.02278371]
[1769408018341,0.17508,87796.0,87782.0,0.02278371]
[1769408018577,0.11383499,87795.0,87782.0,0.02278371]
[1769408018809,0.11383499,87794.0,87783.0,1.02683123]
[1769408018978,0.09860641,87799.0,87783.0,1.12172083]
[1769408019202,0.1138358,87798.0,87783.0,1.12172083]
[1769408019407,0.1138358,87797.0,87783.0,1.12172083]
[1769408019614,0.1138358,87796.0,87783.0,1.12172083]
[1769408019827,0.1138358,87795.0,87783.0,1.12172083]
[1769408020012,0.1138358,87794.0,87783.0,1.12172083]
[1769408020264,0.09860641,87799.0,87783.0,1.12172083]
[1769408020476,0.09060095,87806.0,87787.0,0.0948896]
[1769408020477,0.11383594,87798.0,87787.0,0.0948896]
[1769408020713,0.68542027,87810.0,87792.0,0.0948896]
[1769408020920,0.51034027,87810.0,87793.0,1.02683123]
[1769408021131,0.60894668,87810.0,87793.0,1.02683123]
[1769408021345,0.9614372,87809.0,87792.0,0.0948896]
[1769408021551,0.01,87793.0,87784.0,0.17508]
[1769408021781,0.01,87793.0,87776.0,0.0948896]
[1769408021994,0.9714372,87793.0,87776.0,0.0948896]
[1769408022408,0.51034027,87790.0,87776.0,0.0948896]
[1769408022620,0.51034027,87790.0,87774.0,0.17508]
[1769408022868,0.9614372,87789.0,87774.0,0.17508]
[1769408025550,0.09860641,87788.0,87774.0,0.17508]